fUST/lending_fUST_20250926
["ID","MTS","AMOUNT","RATE_DAILY","PERIOD"]
[387814319,1758887437391,-480.83597374,0.00038356,30]
[387814320,1758887437401,-480.0,0.00038356,30]
[387814321,1758887437410,-915.51,0.00038356,30]
[387814322,1758887437419,-480.0,0.00038356,30]
[387814323,1758887437429,-480.0,0.00038356,30]
[387814324,1758887437439,-480.0,0.00038356,30]
[387814325,1758887437448,-480.0,0.00038356,30]
[387814326,1758887437457,-480.0,0.00038356,30]
[387814327,1758887437467,-480.0,0.00038356,30]
[387814328,1758887437476,-226.56657964,0.00038356,30]
[387814329,1758887437485,-480.0,0.00038356,30]
[387814330,1758887437495,-480.0,0.00038356,30]
[387814331,1758887437504,-480.0,0.00038356,30]
[387814332,1758887437514,-480.0,0.00038356,30]
[387814333,1758887437524,-480.0,0.00038356,30]
[387814334,1758887437533,-480.0,0.00038356,30]
[387814335,1758887437543,-480.0,0.00038356,30]
[387814336,1758887437555,-480.0,0.00038356,30]
[387814337,1758887437565,-664.71,0.00038356,30]
[387814338,1758887437574,-480.0,0.00038356,30]
[387814339,1758887437584,-480.0,0.00038356,30]
[387814340,1758887437594,-480.0,0.00038356,30]
[387814341,1758887437603,-480.58644873,0.00038356,30]
[387814342,1758887437613,-480.0,0.00038356,30]
[387814343,1758887437622,-480.0,0.00038356,30]
[387814344,1758887437631,-480.0,0.00038356,30]
[387814345,1758887437641,-2018.41,0.00038356,30]
[387814346,1758887437650,-480.89132246,0.00038356,30]
[387814347,1758887437659,-480.0,0.00038356,30]
[387814348,1758887437669,-480.0,0.00038356,30]
[387814349,1758887437679,-480.0,0.00038356,30]
[387814350,1758887437688,-522.48,0.00038356,30]
[387814351,1758887437698,-986.89,0.00038356,30]
[387814352,1758887437707,-480.0,0.00038356,30]
[387814353,1758887437717,-483.0645928,0.00038356,30]
[387814354,1758887437726,-480.0,0.00038356,30]
[387814355,1758887437735,-480.0,0.00038356,30]
[387814356,1758887437745,-480.0,0.00038356,30]
[387814357,1758887437753,-480.0,0.00038356,30]
[387814358,1758887437763,-480.0,0.00038356,30]
[387814359,1758887437771,-480.0,0.00038356,30]
[387814360,1758887437780,-480.0,0.00038356,30]
[387814361,1758887437789,-480.0,0.00038356,30]
[387814362,1758887437799,-480.0,0.00038356,30]
[387814363,1758887437809,-480.0,0.00038356,30]
[387814364,1758887437818,-480.0,0.00038356,30]
[387814365,1758887437827,-480.0,0.00038356,30]
[387814366,1758887437837,-480.0,0.00038356,30]
[387814367,1758887437847,-480.61878633,0.00038356,30]
[387814368,1758887437856,-480.0,0.00038356,30]
[387814369,1758887437866,-480.0,0.00038356,30]
[387814370,1758887437876,-481.63330037,0.00038356,30]
[387814371,1758887437885,-480.0,0.00038356,30]
[387814372,1758887437895,-480.0,0.00038356,30]
[387814373,1758887437904,-480.0,0.00038356,30]
[387814374,1758887437913,-480.0,0.00038356,30]
[387814375,1758887437923,-480.0,0.00038356,30]
[387814376,1758887437932,-480.0,0.00038356,30]
[387814377,1758887437941,-480.0,0.00038356,30]
[387814378,1758887437951,-480.0,0.00038356,30]
[387814379,1758887437960,-480.0,0.00038356,30]
[387814380,1758887437969,-480.0,0.00038356,30]
[387814381,1758887437978,-481.21737285,0.00038356,30]
[387814382,1758887437988,-480.0,0.00038356,30]
[387814383,1758887437998,-480.0,0.00038356,30]
[387814384,1758887438007,-643.58,0.00038356,30]
[387814385,1758887438017,-470.07366832,0.00038356,30]
[387814386,1758887438025,-480.0,0.00038356,30]
[387814387,1758887438034,-484.92,0.00038356,30]
[387814388,1758887438044,-480.0,0.00038356,30]
[387814389,1758887438054,-480.0,0.00038356,30]
[387814390,1758887438064,-410.88649679,0.00038356,30]
[387814391,1758887438073,-480.0,0.00038356,30]
[387814392,1758887438083,-480.0,0.00038356,30]
[387814393,1758887438093,-480.0,0.00038356,30]
[387814394,1758887438102,-480.0,0.00038356,30]
[387814395,1758887438113,-562.06425426,0.00038356,30]
[387814396,1758887438123,-480.0,0.00038356,30]
[387814397,1758887438132,-561.78178152,0.00038356,30]
[387814398,1758887438142,-480.0,0.00038356,30]
[387814399,1758887438151,-480.0,0.00038356,30]
[387814400,1758887438159,-480.0,0.00038356,30]
[387814401,1758887438168,-481.94238549,0.00038356,30]
[387814402,1758887438177,-480.0,0.00038356,30]
[387814403,1758887438186,-480.0,0.00038356,30]
[387814404,1758887438201,-480.0,0.00038356,30]
[387814405,1758887438211,-601.29463102,0.00038356,30]
[387814406,1758887438220,-480.0,0.00038356,30]
[387814407,1758887438229,-483.1579589,0.00038356,30]
[387814408,1758887438240,-480.0,0.00038356,30]
[387814409,1758887438322,-480.0,0.00038356,30]
[387814410,1758887438332,-480.0,0.00038356,30]
[387814411,1758887438343,-482.96320828,0.00038356,30]
[387814412,1758887438352,-480.0,0.00038356,30]
[387814413,1758887438361,-480.0,0.00038356,30]
[387814414,1758887438371,-454.31495881,0.00038356,30]
[387814415,1758887438380,-480.0,0.00038356,30]
[387814416,1758887438390,-480.0,0.00038356,30]
[387814417,1758887438399,-480.0,0.00038356,30]
[387814418,1758887438408,-480.0,0.00038356,30]
[387814419,1758887438418,-450.31077579,0.00038356,30]
[387814420,1758887438427,-480.0,0.00038356,30]
[387814421,1758887438437,-480.0,0.00038356,30]
[387814422,1758887438446,-487.88515639,0.00038356,30]
[387814423,1758887438454,-482.35180963,0.00038356,30]
[387814424,1758887438463,-480.0,0.00038356,30]
[387814425,1758887438472,-480.0,0.00038356,30]
[387814426,1758887438481,-480.0,0.00038356,30]
[387814427,1758887438490,-482.02246985,0.00038356,30]
[387814428,1758887438499,-480.0,0.00038356,30]
[387814429,1758887438508,-480.0,0.00038356,30]
[387814430,1758887438517,-480.0,0.00038356,30]
[387814431,1758887438527,-484.56,0.00038356,30]
[387814432,1758887438536,-480.0,0.00038356,30]
[387814433,1758887438548,-859.92,0.00038356,3]
[387814434,1758887438558,-480.0,0.00038356,30]
[387814435,1758887438567,-480.67320941,0.00038356,30]
[387814436,1758887438576,-480.56165287,0.00038356,30]
[387814437,1758887438585,-480.0,0.00038356,30]
[387814438,1758887438595,-865.92,0.00038356,30]
[387814439,1758887438604,-483.70307381,0.00038356,30]
[387814440,1758887438613,-481.1038208,0.00038356,30]
[387814441,1758887438623,-480.0,0.00038356,30]
[387814442,1758887438637,-591.57,0.00038356,30]
[387814443,1758887438646,-480.0,0.00038356,30]
[387814444,1758887438656,-542.71418323,0.00038356,30]
[387814445,1758887438665,-480.0,0.00038356,30]
[387814446,1758887438675,-480.0,0.00038356,30]
[387814447,1758887438684,-480.0,0.00038356,30]
[387814448,1758887438694,-480.0,0.00038356,30]
[387814449,1758887438704,-480.0,0.00038356,30]
[387814450,1758887438713,-1052.9,0.00038356,30]
[387814451,1758887438723,-480.0,0.00038356,30]
[387814452,1758887438732,-480.86812507,0.00038356,30]
[387814453,1758887438741,-3154.93,0.00038356,30]
[387814454,1758887438750,-480.0,0.00038356,30]
[387814455,1758887438761,-480.78567815,0.00038356,30]
[387814456,1758887438770,-820.67,0.00038356,30]
[387814457,1758887438779,-480.0,0.00038356,30]
[387814458,1758887438789,-480.0,0.00038356,30]
[387814459,1758887438798,-480.0,0.00038356,30]
[387814460,1758887438807,-480.0,0.00038356,30]
[387814461,1758887438817,-480.0,0.00038356,30]
[387814462,1758887438826,-480.78871255,0.00038356,30]
[387814463,1758887438836,-480.0,0.00038356,30]
[387814464,1758887438845,-480.0,0.00038356,30]
[387814465,1758887438854,-480.0,0.00038356,21]
[387814466,1758887438864,-491.16746168,0.00038356,30]
[387814467,1758887438873,-480.0,0.00038356,30]
[387814468,1758887438883,-481.08444885,0.00038356,30]
[387814469,1758887438892,-480.0,0.00038356,30]
[387814470,1758887438901,-480.0,0.00038356,30]
[387814471,1758887438911,-643.85,0.00038356,30]
[387814472,1758887438920,-757.66,0.00038356,30]
[387814473,1758887438928,-480.0,0.00038356,30]
[387814474,1758887438938,-480.0,0.00038356,30]
[387814475,1758887438947,-482.85848406,0.00038356,30]
[387814476,1758887438957,-480.0,0.00038356,30]
[387814477,1758887438966,-480.0,0.00038356,30]
[387814478,1758887438976,-923.27,0.00038356,30]
[387814479,1758887438984,-480.0,0.00038356,30]
[387814480,1758887438993,-743.16,0.00038356,30]
[387814481,1758887439003,-480.0,0.00038356,30]
[387814482,1758887439012,-480.0,0.00038356,30]
[387814483,1758887439021,-480.0,0.00038356,30]
[387814484,1758887439030,-480.0,0.00038356,30]
[387814485,1758887439039,-480.0,0.00038356,30]
[387814486,1758887439049,-480.0,0.00038356,30]
[387814487,1758887439057,-480.0,0.00038356,30]
[387814488,1758887439066,-480.0,0.00038356,30]
[387814489,1758887439076,-480.0,0.00038356,30]
[387814490,1758887439085,-502.81725494,0.00038356,30]
[387814491,1758887439095,-480.0,0.00038356,30]
[387814492,1758887439104,-480.0,0.00038356,30]
[387814493,1758887439114,-500.0,0.00038356,30]
[387814494,1758887439124,-500.0,0.00038356,30]
[387814495,1758887439134,-500.0,0.00038356,30]
[387814496,1758887439143,-500.0,0.00038356,30]
[387814497,1758887439153,-500.0,0.00038356,30]
[387814498,1758887439162,-500.0,0.00038356,30]
[387814499,1758887439171,-500.0,0.00038356,30]
[387814500,1758887439182,-500.0,0.00038356,30]
[387814501,1758887439194,-505.99554816,0.00038356,30]
[387814502,1758887439203,-480.7193241,0.00038356,30]
[387814503,1758887439213,-480.0,0.00038356,30]
[387814504,1758887439222,-480.0,0.00038356,30]
[387814505,1758887439231,-505.29,0.00038356,30]
[387814506,1758887439240,-480.0,0.00038356,30]
[387814507,1758887439249,-1515.82,0.00038356,30]
[387814508,1758887439258,-480.0,0.00038356,30]
[387814509,1758887439267,-2225.34,0.00038356,30]
[387814510,1758887439277,-480.0,0.00038356,30]
[387814511,1758887439286,-897.36,0.00038356,30]
[387814512,1758887439295,-480.20979962,0.00038356,30]
[387814513,1758887439306,-480.0,0.00038356,30]
[387814514,1758887439315,-480.0,0.00038356,30]
[387814515,1758887439324,-480.0,0.00038356,30]
[387814516,1758887439333,-482.13117987,0.00038356,30]
[387814517,1758887439343,-480.0,0.00038356,30]
[387814518,1758887439352,-480.0,0.00038356,30]
[387814519,1758887439361,-481.53402975,0.00038356,30]
[387814520,1758887439370,-481.19304511,0.00038356,30]
[387814521,1758887439380,-481.73447005,0.00038356,30]
[387814522,1758887439389,-411.13432493,0.00038356,30]
[387814523,1758887439398,-381.13628607,0.00038356,30]
[387814524,1758887439407,-480.0,0.00038356,30]
[387814525,1758887439417,-1178.01,0.00038356,30]
[387814526,1758887439426,-480.0,0.00038356,30]
[387814527,1758887439435,-2461.48,0.00038356,30]
[387814528,1758887439445,-480.0,0.00038356,30]
[387814529,1758887439454,-480.0,0.00038356,30]
[387814530,1758887439464,-480.0,0.00038356,30]
[387814531,1758887439473,-480.0,0.00038356,30]
[387814532,1758887439482,-492.89199076,0.00038356,30]
[387814533,1758887439491,-480.60566902,0.00038356,30]
[387814534,1758887439501,-480.67911556,0.00038356,30]
[387814535,1758887439510,-480.0,0.00038356,30]
[387814536,1758887439519,-480.0,0.00038356,30]
[387814537,1758887439529,-480.0,0.00038356,30]
[387814538,1758887439538,-480.0,0.00038356,30]
[387814539,1758887439549,-480.0,0.00038356,30]
[387814540,1758887439559,-480.0,0.00038356,30]
[387814541,1758887439568,-481.01971295,0.00038356,30]
[387814542,1758887439576,-480.0,0.00038356,30]
[387814543,1758887439585,-481.97204551,0.00038356,30]
[387814544,1758887439595,-480.0,0.00038356,30]
[387814545,1758887439604,-721.08,0.00038356,30]
[387814546,1758887439614,-480.0,0.00038356,30]
[387814547,1758887439623,-480.0,0.00038356,30]
[387814548,1758887439633,-480.0,0.00038356,30]
[387814549,1758887439642,-480.0,0.00038356,30]
[387814550,1758887439651,-938.748357,0.00038356,2]
[387814551,1758887439660,-160.58412255,0.00038356,2]
[387814552,1758887439669,-500.0,0.00038373,5]
[387814553,1758887439679,-500.0,0.00038373,5]
[387814554,1758887439689,-500.0,0.00038373,5]
[387814555,1758887439698,-487.81549262,0.00038373,5]
[387814556,1758887439707,-500.0,0.00038373,5]
[387814557,1758887439717,-157.3834965,0.00038373,5]
[387814558,1758887439727,-500.0,0.00038373,5]
[387814559,1758887439736,-500.0,0.00038373,5]
[387814560,1758887439745,-500.0,0.00038373,5]
[387814561,1758887439755,-500.0,0.00038373,5]
[387814562,1758887439766,-500.0,0.00038373,5]
[387814563,1758887439776,-500.0,0.00038373,5]
[387814564,1758887439785,-500.0,0.00038373,5]
[387814566,1758887439866,-501.00712413,0.00038373,5]
[387814568,1758887439877,-500.0,0.00038373,5]
[387814569,1758887439886,-500.0,0.00038373,5]
[387814571,1758887439896,-373.49166916,0.00038373,5]
[387814573,1758887439905,-500.0,0.00038373,5]
[387814574,1758887439914,-500.0,0.00038373,5]
[387814575,1758887439924,-233.71402077,0.000384,30]
[387814576,1758887439933,-500.0,0.00038467,120]
[387814577,1758887439943,-481.82276182,0.0003863,30]
[387814578,1758887439952,-482.11881551,0.0003863,30]
[387814580,1758887439962,-315.35637273,0.0003863,30]
[387814581,1758887439972,-481.28575198,0.0003863,30]
[387814582,1758887439982,-480.0,0.0003863,30]
[387814583,1758887439991,-390.01086488,0.0003863,30]
[387814584,1758887440000,-480.0,0.0003863,30]
[387814586,1758887440010,-480.0,0.0003863,30]
[387814588,1758887440019,-315.43617121,0.0003863,30]
[387814589,1758887440029,-480.0,0.0003863,30]
[387814591,1758887440039,-480.0,0.0003863,30]
[387814593,1758887440048,-480.0,0.0003863,30]
[387814594,1758887440058,-480.0,0.0003863,30]
[387814596,1758887440068,-489.97366521,0.0003863,30]
[387814597,1758887440078,-480.0,0.0003863,30]
[387814598,1758887440088,-480.0,0.0003863,30]
[387814600,1758887440098,-480.0,0.0003863,30]
[387814601,1758887440107,-480.0,0.0003863,30]
[387814602,1758887440117,-481.09667353,0.0003863,30]
[387814603,1758887440127,-482.21995895,0.0003863,30]
[387814605,1758887440136,-482.12232961,0.0003863,30]
[387814606,1758887440146,-480.0,0.0003863,30]
[387814607,1758887440156,-480.0,0.0003863,30]
[387814608,1758887440166,-481.13324444,0.0003863,30]
[387814609,1758887440175,-480.0,0.0003863,30]
[387814610,1758887440183,-481.79167813,0.0003863,30]
[387814611,1758887440194,-480.0,0.0003863,30]
[387814612,1758887440204,-480.97672904,0.0003863,30]
[387814613,1758887440214,-480.0,0.0003863,30]
[387814614,1758887440223,-162.7424317,0.0003863,30]
[387814615,1758887440233,-486.67414489,0.0003863,30]
[387814616,1758887440243,-480.0,0.0003863,30]
[387814617,1758887440252,-482.34159564,0.0003863,30]
[387814618,1758887440261,-480.0,0.0003863,30]
[387814619,1758887440274,-480.0,0.0003863,30]
[387814620,1758887440283,-480.0,0.0003863,30]
[387814621,1758887440293,-480.0,0.0003863,30]
[387814622,1758887440302,-482.02631451,0.0003863,30]
[387814623,1758887440312,-480.0,0.0003863,30]
[387814624,1758887440322,-480.0,0.0003863,30]
[387814625,1758887440331,-480.0,0.0003863,30]
[387814626,1758887440340,-480.0,0.0003863,30]
[387814627,1758887440349,-480.0,0.0003863,30]
[387814628,1758887440359,-480.0,0.0003863,30]
[387814629,1758887440368,-480.0,0.0003863,30]
[387814630,1758887440378,-480.0,0.0003863,30]
[387814631,1758887440388,-480.63458677,0.0003863,30]
[387814632,1758887440397,-485.17346447,0.0003863,30]
[387814633,1758887440407,-282.83766417,0.0003863,30]
[387814634,1758887440416,-480.0,0.0003863,30]
[387814635,1758887440426,-480.0,0.0003863,30]
[387814636,1758887440437,-577.06976112,0.0003863,30]
[387814637,1758887440446,-480.0,0.0003863,30]
[387814638,1758887440455,-480.0,0.0003863,30]
[387814639,1758887440465,-480.0,0.0003863,30]
[387814640,1758887440474,-271.75752178,0.0003863,30]
[387814641,1758887440483,-480.0,0.0003863,30]
[387814642,1758887440492,-480.0,0.0003863,30]
[387814643,1758887440502,-480.0,0.0003863,30]
[387814644,1758887440511,-480.0,0.0003863,30]
[387814645,1758887440521,-487.20562143,0.0003863,30]
[387814646,1758887440531,-489.59173314,0.0003863,30]
[387814647,1758887440540,-491.66670678,0.0003863,30]
[387814648,1758887440548,-480.0,0.0003863,30]
[387814649,1758887440559,-480.0,0.0003863,30]
[387814650,1758887440568,-481.12554694,0.0003863,30]
[387814651,1758887440583,-480.0,0.0003863,30]
[387814652,1758887440600,-480.0,0.0003863,30]
[387814653,1758887440614,-480.0,0.0003863,30]
[387814654,1758887440629,-245.41630606,0.0003863,30]
[387814655,1758887440641,-480.0,0.0003863,30]
[387814656,1758887440656,-494.15510354,0.0003863,30]
[387814657,1758887440671,-480.0,0.0003863,30]
[387814658,1758887440686,-485.01548845,0.0003863,30]
[387814659,1758887440702,-237.41146313,0.0003863,30]
[387814660,1758887440716,-480.0,0.0003863,30]
[387814661,1758887440730,-480.0,0.0003863,30]
[387814662,1758887440744,-480.0,0.0003863,30]
[387814663,1758887440759,-480.0,0.0003863,30]
[387814664,1758887440772,-481.39060732,0.0003863,30]
[387814665,1758887440784,-480.0,0.0003863,30]
[387814666,1758887440797,-480.0,0.0003863,30]
[387814667,1758887440811,-446.70793523,0.0003863,30]
[387814668,1758887440826,-480.0,0.0003863,30]
[387814669,1758887440841,-480.0,0.0003863,30]
[387814670,1758887440857,-480.0,0.0003863,30]
[387814671,1758887440872,-546.70031532,0.0003863,30]
[387814672,1758887440883,-480.81839182,0.0003863,30]
[387814673,1758887440895,-480.0,0.0003863,30]
[387814674,1758887440911,-528.34285404,0.0003863,30]
[387814675,1758887440925,-481.99792183,0.0003863,30]
[387814676,1758887440936,-480.0,0.0003863,30]
[387814677,1758887440949,-480.0,0.0003863,30]
[387814678,1758887440963,-540.14,0.0003863,30]
[387814679,1758887440975,-482.02603784,0.0003863,30]
[387814680,1758887440986,-480.0,0.0003863,30]
[387814681,1758887440999,-358.27871668,0.0003863,30]
[387814682,1758887441011,-480.0,0.0003863,30]
[387814683,1758887441023,-480.0,0.0003863,30]
[387814684,1758887441035,-484.58300499,0.0003863,30]
[387814685,1758887441048,-480.0,0.0003863,30]
[387814686,1758887441060,-481.57351384,0.0003863,30]
[387814687,1758887441073,-480.0,0.0003863,30]
[387814688,1758887441087,-480.0,0.0003863,30]
[387814689,1758887441099,-477.14709059,0.0003863,30]
[387814690,1758887441112,-481.54791058,0.0003863,30]
[387814691,1758887441125,-480.0,0.0003863,30]
[387814692,1758887441137,-480.0,0.0003863,30]
[387814693,1758887441150,-480.0,0.0003863,30]
[387814694,1758887441163,-480.0,0.0003863,30]
[387814695,1758887441175,-480.0,0.0003863,30]
[387814696,1758887441188,-480.0,0.0003863,30]
[387814697,1758887441203,-491.34631597,0.0003863,30]
[387814698,1758887441215,-480.0,0.0003863,30]
[387814699,1758887441228,-485.08363277,0.0003863,30]
[387814700,1758887441241,-481.93343988,0.0003863,30]
[387814701,1758887441254,-480.0,0.0003863,30]
[387814702,1758887441266,-480.0,0.0003863,30]
[387814703,1758887441278,-650.91,0.0003863,30]
[387814704,1758887441290,-480.0,0.0003863,30]
[387814705,1758887441302,-480.0,0.0003863,30]
[387814706,1758887441315,-480.0,0.0003863,30]
[387814707,1758887441328,-480.0,0.0003863,30]
[387814708,1758887441340,-480.0,0.0003863,30]
[387814709,1758887441353,-480.0,0.0003863,30]
[387814710,1758887441366,-480.0,0.0003863,30]
[387814711,1758887441379,-480.0,0.0003863,30]
[387814712,1758887441391,-480.0,0.0003863,30]
[387814713,1758887441404,-480.0,0.0003863,30]
[387814714,1758887441415,-480.0,0.0003863,30]
[387814715,1758887441428,-480.0,0.0003863,30]
[387814716,1758887441441,-483.47023651,0.0003863,30]
[387814717,1758887441454,-480.0,0.0003863,30]
[387814718,1758887441467,-480.0,0.0003863,30]
[387814719,1758887441476,-483.47859017,0.0003863,30]
[387814720,1758887441486,-481.9450675,0.0003863,30]
[387814721,1758887441605,-481.03839673,0.0003863,30]
[387814722,1758887441619,-480.0,0.0003863,30]
[387814723,1758887441629,-480.0,0.0003863,20]
[387814724,1758887441638,-480.0,0.0003863,30]
[387814725,1758887441648,-480.0,0.0003863,30]
[387814726,1758887441658,-480.0,0.0003863,30]
[387814727,1758887441667,-482.43749713,0.0003863,30]
[387814728,1758887441677,-480.0,0.0003863,30]
[387814729,1758887441686,-480.0,0.0003863,30]
[387814730,1758887441695,-484.14361877,0.0003863,30]
[387814731,1758887441704,-417.71832512,0.0003863,30]
[387814732,1758887441714,-480.0,0.0003863,30]
[387814733,1758887441724,-447.07125821,0.0003863,30]
[387814734,1758887441733,-480.0,0.0003863,30]
[387814735,1758887441743,-200.0,0.0003863,30]
[387814736,1758887441753,-482.98658151,0.0003863,30]
[387814737,1758887441762,-480.0,0.0003863,30]
[387814738,1758887441773,-480.0,0.0003863,30]
[387814739,1758887441783,-480.0,0.0003863,30]
[387814740,1758887441791,-480.0,0.0003863,30]
[387814741,1758887441800,-480.0,0.0003863,30]
[387814742,1758887441810,-480.0,0.0003863,30]
[387814743,1758887441820,-480.0,0.0003863,30]
[387814744,1758887441829,-484.6237103,0.0003863,30]
[387814745,1758887441839,-480.0,0.0003863,30]
[387814746,1758887441848,-482.75039625,0.0003863,30]
[387814747,1758887441858,-480.0,0.0003863,30]
[387814748,1758887441868,-3097.95,0.0003863,30]
[387814749,1758887441877,-480.0,0.0003863,30]
[387814750,1758887441887,-480.0,0.0003863,30]
[387814751,1758887441897,-480.0,0.0003863,30]
[387814752,1758887441906,-483.89320091,0.0003863,30]
[387814753,1758887441916,-480.0,0.0003863,30]
[387814754,1758887441925,-484.25696628,0.0003863,30]
[387814755,1758887441935,-480.0,0.0003863,30]
[387814756,1758887441943,-480.0,0.0003863,30]
[387814757,1758887441953,-480.0,0.0003863,30]
[387814758,1758887441962,-480.0,0.0003863,30]
[387814759,1758887441972,-480.0,0.0003863,30]
[387814760,1758887441982,-564.36,0.0003863,30]
[387814761,1758887441991,-615.53007405,0.0003863,30]
[387814762,1758887442001,-187.18189722,0.0003863,30]
[387814763,1758887442010,-480.0,0.0003863,30]
[387814764,1758887442019,-480.0,0.0003863,30]
[387814765,1758887442028,-480.0,0.0003863,30]
[387814766,1758887442040,-480.0,0.0003863,30]
[387814767,1758887442050,-480.0,0.0003863,30]
[387814768,1758887442059,-480.0,0.0003863,30]
[387814769,1758887442068,-215.79763898,0.0003863,30]
[387814770,1758887442078,-482.02445678,0.0003863,30]
[387814771,1758887442087,-480.0,0.0003863,30]
[387814772,1758887442096,-480.0,0.0003863,30]
[387814773,1758887442105,-480.0,0.0003863,30]
[387814774,1758887442114,-480.0,0.0003863,30]
[387814775,1758887442123,-480.0,0.0003863,30]
[387814776,1758887442133,-480.0,0.0003863,30]
[387814777,1758887442142,-447.89129839,0.0003863,30]
[387814778,1758887442152,-480.0,0.0003863,30]
[387814779,1758887442161,-915.51,0.0003863,30]
[387814780,1758887442170,-480.0,0.0003863,30]
[387814781,1758887442179,-480.0,0.0003863,30]
[387814782,1758887442191,-480.0,0.0003863,30]
[387814783,1758887442206,-480.0,0.0003863,30]
[387814784,1758887442215,-480.0,0.0003863,30]
[387814785,1758887442225,-480.0,0.0003863,30]
[387814786,1758887442234,-481.3742661,0.0003863,30]
[387814787,1758887442245,-480.0,0.0003863,30]
[387814788,1758887442254,-480.0,0.0003863,30]
[387814790,1758887442263,-316.4973062,0.0003863,30]
[387814792,1758887442273,-664.71,0.0003863,30]
[387814793,1758887442282,-480.0,0.0003863,30]
[387814794,1758887442293,-482.34233422,0.0003863,30]
[387814795,1758887442306,-480.0,0.0003863,30]
[387814796,1758887442315,-502.87206174,0.0003863,30]
[387814798,1758887442324,-481.71861101,0.0003863,30]
[387814799,1758887442334,-2018.41,0.0003863,30]
[387814800,1758887442343,-292.17493305,0.0003863,30]
[387814801,1758887442353,-457.35891299,0.0003863,30]
[387814802,1758887442363,-480.0,0.0003863,30]
[387814804,1758887442373,-522.48,0.0003863,30]
[387814805,1758887442383,-986.89,0.0003863,30]
[387814806,1758887442392,-549.21426974,0.0003863,30]
[387814807,1758887442401,-480.0,0.0003863,30]
[387814808,1758887442411,-480.0,0.0003863,30]
[387814809,1758887442420,-480.0,0.0003863,30]
[387814810,1758887442429,-480.0,0.0003863,30]
[387814811,1758887442439,-480.0,0.0003863,30]
[387814812,1758887442449,-480.0,0.0003863,30]
[387814814,1758887442458,-487.14089949,0.0003863,30]
[387814815,1758887442467,-480.0,0.0003863,30]
[387814816,1758887442477,-480.0,0.0003863,30]
[387814817,1758887442486,-480.0,0.0003863,30]
[387814818,1758887442496,-480.0,0.0003863,30]
[387814819,1758887442505,-485.75449743,0.0003863,30]
[387814820,1758887442515,-480.0,0.0003863,30]
[387814821,1758887442525,-375.05909357,0.0003863,30]
[387814822,1758887442535,-480.0,0.0003863,30]
[387814823,1758887442544,-480.0,0.0003863,30]
[387814824,1758887442553,-480.0,0.0003863,30]
[387814826,1758887442563,-480.0,0.0003863,30]
[387814827,1758887442573,-480.0,0.0003863,30]
[387814828,1758887442584,-578.35040637,0.0003863,30]
[387814829,1758887442593,-480.0,0.0003863,30]
[387814830,1758887442603,-480.0,0.0003863,30]
[387814831,1758887442613,-643.58,0.0003863,30]
[387814832,1758887442623,-480.0,0.0003863,30]
[387814833,1758887442632,-484.92,0.0003863,30]
[387814834,1758887442642,-484.07016199,0.0003863,30]
[387814835,1758887442651,-480.0,0.0003863,30]
[387814836,1758887442661,-480.0,0.0003863,30]